[Event "Titled Tuesday Blitz December 27 Late 2022"]
[White "Pakleza, Zbigniew"]
[Black "Srebrnic, Marko"]
[WhiteFideId "1119290"]
[BlackFideId "14603616"]
[WhiteElo "2494"]
[BlackElo "2366"]
[Result "1-0"]
[Round "07"]
[TimeControl "180+2"]
[Date "2022.12.27"]
[WhiteClock "0:00:05"]
[BlackClock "0:00:05"]

1. d4 {[%clk 0:03:00]}  Nf6 {[%clk 0:02:59]} 2. Nf3 {[%clk 0:03:00]}  d6 {[%clk 0:02:59]} 3. Bf4 {[%clk 0:03:01]}  Bf5 {[%clk 0:02:53]} 4. e3 {[%clk 0:02:59]}  c6 {[%clk 0:02:51]} 5. c4 {[%clk 0:02:58]}  h6 {[%clk 0:02:51]} 6. h3 {[%clk 0:02:57]}  Qb6 {[%clk 0:02:48]} 7. Qb3 {[%clk 0:02:55]}  Nbd7 {[%clk 0:02:47]} 8. Nc3 {[%clk 0:02:55]}  Ne4 {[%clk 0:02:45]} 9. Be2 {[%clk 0:02:53]}  Nxc3 {[%clk 0:02:43]} 10. bxc3 {[%clk 0:02:52]}  e6 {[%clk 0:02:39]} 11. O-O {[%clk 0:02:51]}  d5 {[%clk 0:02:39]} 12. c5 {[%clk 0:02:48]}  Qxb3 {[%clk 0:02:39]} 13. axb3 {[%clk 0:02:49]}  f6 {[%clk 0:02:36]} 14. b4 {[%clk 0:02:49]}  g5 {[%clk 0:02:36]} 15. Bg3 {[%clk 0:02:43]}  h5 {[%clk 0:02:35]} 16. b5 {[%clk 0:02:42]}  h4 {[%clk 0:02:28]} 17. Bh2 {[%clk 0:02:40]}  g4 {[%clk 0:02:27]} 18. hxg4 {[%clk 0:02:39]}  Bxg4 {[%clk 0:02:28]} 19. bxc6 {[%clk 0:02:34]}  bxc6 {[%clk 0:02:28]} 20. Ra6 {[%clk 0:02:17]}  h3 {[%clk 0:02:24]} 21. Rfa1 {[%clk 0:02:13]}  hxg2 {[%clk 0:02:20]} 22. Rxc6 {[%clk 0:02:04]}  a5 {[%clk 0:02:17]} 23. Kxg2 {[%clk 0:01:55]}  Rg8 {[%clk 0:02:05]} 24. Bg3 {[%clk 0:01:52]}  e5 {[%clk 0:01:57]} 25. Bb5 {[%clk 0:01:38]}  Kd8 {[%clk 0:01:34]} 26. c4 {[%clk 0:01:09]}  Bf5 {[%clk 0:01:15]} 27. cxd5 {[%clk 0:01:01]}  Be4 {[%clk 0:01:14]} 28. Bc4 {[%clk 0:00:45]}  exd4 {[%clk 0:01:11]} 29. exd4 {[%clk 0:00:39]}  Bxc5 {[%clk 0:01:10]} 30. dxc5 {[%clk 0:00:25]}  Ne5 {[%clk 0:01:09]} 31. Rxf6 {[%clk 0:00:25]}  Nxc4 {[%clk 0:00:54]} 32. Re1 {[%clk 0:00:23]}  Nd2 {[%clk 0:00:46]} 33. Rf4 {[%clk 0:00:03]}  Bxf3+ {[%clk 0:00:43]} 34. Rxf3 {[%clk 0:00:04]}  Nxf3 {[%clk 0:00:43]} 35. Kxf3 {[%clk 0:00:05]}  a4 {[%clk 0:00:43]} 36. c6 {[%clk 0:00:03]}  a3 {[%clk 0:00:43]} 37. d6 {[%clk 0:00:02]}  a2 {[%clk 0:00:41]} 38. Bh4+ {[%clk 0:00:02]}  Kc8 {[%clk 0:00:41]} 39. d7+ {[%clk 0:00:03]}  Kc7 {[%clk 0:00:41]} 40. d8=Q+ {[%clk 0:00:03]}  Rgxd8 {[%clk 0:00:40]} 41. Bxd8+ {[%clk 0:00:04]}  Kxd8 {[%clk 0:00:37]} 42. Ra1 {[%clk 0:00:04]}  Kc7 {[%clk 0:00:37]} 43. Ke4 {[%clk 0:00:04]}  Kxc6 {[%clk 0:00:37]} 44. Kd3 {[%clk 0:00:05]}  Kb5 {[%clk 0:00:35]} 45. Kc3 {[%clk 0:00:04]}  Ra3+ {[%clk 0:00:32]} 46. Kb2 {[%clk 0:00:04]}  Kb4 {[%clk 0:00:32]} 47. Rxa2 {[%clk 0:00:04]}  Rf3 {[%clk 0:00:33]} 48. Kb1 {[%clk 0:00:04]}  Kb3 {[%clk 0:00:32]} 49. Re2 {[%clk 0:00:04]}  Rf5 {[%clk 0:00:26]} 50. Kc1 {[%clk 0:00:04]}  Kc3 {[%clk 0:00:26]} 51. Kd1 {[%clk 0:00:03]}  Rh5 {[%clk 0:00:25]} 52. Re3+ {[%clk 0:00:03]}  Kd4 {[%clk 0:00:25]} 53. Ke2 {[%clk 0:00:04]}  Ra5 {[%clk 0:00:24]} 54. Re8 {[%clk 0:00:03]}  Rf5 {[%clk 0:00:13]} 55. f3 {[%clk 0:00:01]}  Rh5 {[%clk 0:00:11]} 56. Kf2 {[%clk 0:00:02]}  Rg5 {[%clk 0:00:10]} 57. f4 {[%clk 0:00:02]}  Rg7 {[%clk 0:00:07]} 58. Kf3 {[%clk 0:00:02]}  Rg1 {[%clk 0:00:07]} 59. f5 {[%clk 0:00:02]}  Rf1+ {[%clk 0:00:07]} 60. Kg4 {[%clk 0:00:03]}  Kd5 {[%clk 0:00:05]} 61. Kg5 {[%clk 0:00:03]}  Kd6 {[%clk 0:00:05]} 62. f6 {[%clk 0:00:03]}  Kd7 {[%clk 0:00:06]} 63. Re2 {[%clk 0:00:04]}  Rg1+ {[%clk 0:00:06]} 64. Kf5 {[%clk 0:00:04]}  Rf1+ {[%clk 0:00:07]} 65. Kg6 {[%clk 0:00:05]}  Rg1+ {[%clk 0:00:06]} 66. Kf7 {[%clk 0:00:05]}  Rg3 {[%clk 0:00:07]} 67. Rd2+ {[%clk 0:00:03]}  Kc7 {[%clk 0:00:06]} 68. Ke7 {[%clk 0:00:04]}  Re3+ {[%clk 0:00:05]} 69. Kf8 {[%clk 0:00:05]}  Rf3 {[%clk 0:00:03]} 70. f7 {[%clk 0:00:05]}  Rf1 {[%clk 0:00:03]} 71. Rd4 {[%clk 0:00:05]}  Rf2 {[%clk 0:00:01]} 72. Kg7 {[%clk 0:00:05]}  Rg2+ {[%clk 0:00:01]} 73. Kf6 {[%clk 0:00:05]}  Rf2+ {[%clk 0:00:02]} 74. Ke6 {[%clk 0:00:05]}  Rg2 {[%clk 0:00:03]} 75. f8=Q {[%clk 0:00:06]}  Re2+ {[%clk 0:00:04]} 76. Kd5 {[%clk 0:00:05]}  Rc2 {[%clk 0:00:04]} 77. Qd6+ {[%clk 0:00:05]}  Kb7 {[%clk 0:00:05]} 78. Rb4+ {[%clk 0:00:05]}  Ka7 {[%clk 0:00:05]} 79. Qb8+ {[%clk 0:00:04]}  Ka6 {[%clk 0:00:05]} 80. Qb6# {[%clk 0:00:05]} 1-0


[Site "https://www.chess.com"]

[Event "Titled Tuesday Blitz December 27 Late 2022"]
[White "Pinheiro, Iung Alicio de O."]
[Black "Hoffmann, Asa"]
[WhiteFideId "2104350"]
[BlackFideId "2001470"]
[WhiteElo "2306"]
[BlackElo "2185"]
[Result "1-0"]
[Round "07"]
[TimeControl "180+2"]
[Date "2022.12.27"]
[WhiteClock "0:00:19"]
[BlackClock "0:01:30"]

1. e4 {[%clk 0:03:00]}  d6 {[%clk 0:02:58]} 2. d4 {[%clk 0:02:59]}  Nf6 {[%clk 0:02:54]} 3. Nc3 {[%clk 0:02:59]}  c6 {[%clk 0:02:54]} 4. a4 {[%clk 0:02:55]}  Qa5 {[%clk 0:02:52]} 5. Bd2 {[%clk 0:02:45]}  e5 {[%clk 0:02:51]} 6. Nf3 {[%clk 0:02:30]}  Bg4 {[%clk 0:02:50]} 7. Nd5 {[%clk 0:02:20]}  Qd8 {[%clk 0:02:49]} 8. Nxf6+ {[%clk 0:02:18]}  Qxf6 {[%clk 0:02:48]} 9. dxe5 {[%clk 0:02:17]}  dxe5 {[%clk 0:02:47]} 10. Be2 {[%clk 0:02:17]}  h6 {[%clk 0:02:45]} 11. O-O {[%clk 0:02:15]}  Bc5 {[%clk 0:02:45]} 12. Ne1 {[%clk 0:02:07]}  Be6 {[%clk 0:02:42]} 13. Nd3 {[%clk 0:02:04]}  Bd6 {[%clk 0:02:40]} 14. Kh1 {[%clk 0:02:02]}  Nd7 {[%clk 0:02:39]} 15. f4 {[%clk 0:01:56]}  exf4 {[%clk 0:02:34]} 16. Bxf4 {[%clk 0:01:15]}  Bxf4 {[%clk 0:02:31]} 17. Nxf4 {[%clk 0:01:15]}  Qe5 {[%clk 0:02:27]} 18. Nxe6 {[%clk 0:01:04]}  Qxe6 {[%clk 0:02:19]} 19. Bg4 {[%clk 0:01:01]}  Qe7 {[%clk 0:02:19]} 20. Bxd7+ {[%clk 0:01:01]}  Qxd7 {[%clk 0:02:19]} 21. Qxd7+ {[%clk 0:01:01]}  Kxd7 {[%clk 0:02:19]} 22. Rxf7+ {[%clk 0:01:02]}  Ke6 {[%clk 0:02:18]} 23. Rxg7 {[%clk 0:00:58]}  Rad8 {[%clk 0:02:15]} 24. Rxb7 {[%clk 0:00:53]}  Rd2 {[%clk 0:02:14]} 25. Rxa7 {[%clk 0:00:38]}  Rxc2 {[%clk 0:02:13]} 26. Rb7 {[%clk 0:00:38]}  Rd8 {[%clk 0:02:10]} 27. b4 {[%clk 0:00:30]}  Rdd2 {[%clk 0:02:09]} 28. Rg1 {[%clk 0:00:31]}  Ra2 {[%clk 0:02:08]} 29. a5 {[%clk 0:00:30]}  h5 {[%clk 0:02:06]} 30. Rb6 {[%clk 0:00:28]}  Kd7 {[%clk 0:02:00]} 31. b5 {[%clk 0:00:22]}  cxb5 {[%clk 0:01:58]} 32. Rxb5 {[%clk 0:00:23]}  h4 {[%clk 0:01:58]} 33. Rh5 {[%clk 0:00:23]}  Re2 {[%clk 0:01:56]} 34. Rxh4 {[%clk 0:00:23]}  Rxa5 {[%clk 0:01:56]} 35. Rf4 {[%clk 0:00:22]}  Ke6 {[%clk 0:01:53]} 36. h3 {[%clk 0:00:22]}  Raa2 {[%clk 0:01:53]} 37. Rg4 {[%clk 0:00:22]}  Rf2 {[%clk 0:01:50]} 38. Rd1 {[%clk 0:00:21]}  Rae2 {[%clk 0:01:49]} 39. Rd5 {[%clk 0:00:21]}  Rxe4 {[%clk 0:01:48]} 40. Rxe4+ {[%clk 0:00:20]}  Kxd5 {[%clk 0:01:47]} 41. Re1 {[%clk 0:00:20]}  Rf8 {[%clk 0:01:45]} 42. Kh2 {[%clk 0:00:19]}  Rg8 {[%clk 0:01:44]} 43. g4 {[%clk 0:00:19]}  Kd6 {[%clk 0:01:44]} 44. Kg3 {[%clk 0:00:20]}  Kd7 {[%clk 0:01:43]} 45. h4 {[%clk 0:00:20]}  Ra8 {[%clk 0:01:40]} 46. h5 {[%clk 0:00:20]}  Ra3+ {[%clk 0:01:39]} 47. Kh4 {[%clk 0:00:20]}  Ra2 {[%clk 0:01:31]} 48. h6 {[%clk 0:00:20]}  Ra6 {[%clk 0:01:31]} 49. Kh5 {[%clk 0:00:20]}  Ra5+ {[%clk 0:01:30]} 50. g5 {[%clk 0:00:20]}  Re5 {[%clk 0:01:30]} 51. Rxe5 {[%clk 0:00:19]} 1-0


[Site "https://www.chess.com"]

[Event "Titled Tuesday Blitz December 27 Late 2022"]
[White "Popilski, Gil"]
[Black "Putnam, Liam"]
[WhiteFideId "2809060"]
[BlackFideId "30938279"]
[WhiteElo "2443"]
[BlackElo "2285"]
[Result "0-1"]
[Round "07"]
[TimeControl "180+2"]
[Date "2022.12.27"]
[WhiteClock "0:00:07"]
[BlackClock "0:00:09"]

1. e4 {[%clk 0:03:00]}  c5 {[%clk 0:02:57]} 2. Nf3 {[%clk 0:02:56]}  d6 {[%clk 0:02:57]} 3. d4 {[%clk 0:02:54]}  cxd4 {[%clk 0:02:58]} 4. Nxd4 {[%clk 0:02:54]}  Nf6 {[%clk 0:02:58]} 5. Nc3 {[%clk 0:02:54]}  a6 {[%clk 0:02:59]} 6. Bd3 {[%clk 0:02:54]}  e5 {[%clk 0:02:58]} 7. Nde2 {[%clk 0:02:54]}  Be7 {[%clk 0:02:58]} 8. O-O {[%clk 0:02:54]}  O-O {[%clk 0:02:59]} 9. Ng3 {[%clk 0:02:52]}  Be6 {[%clk 0:02:56]} 10. h3 {[%clk 0:02:48]}  Nbd7 {[%clk 0:02:43]} 11. Qf3 {[%clk 0:02:47]}  b5 {[%clk 0:02:40]} 12. a4 {[%clk 0:02:45]}  b4 {[%clk 0:02:38]} 13. Nd5 {[%clk 0:02:45]}  Bxd5 {[%clk 0:02:38]} 14. exd5 {[%clk 0:02:45]}  Nc5 {[%clk 0:02:37]} 15. Bc4 {[%clk 0:02:04]}  Re8 {[%clk 0:02:32]} 16. a5 {[%clk 0:01:52]}  g6 {[%clk 0:02:15]} 17. Qe2 {[%clk 0:01:34]}  Qc7 {[%clk 0:02:06]} 18. b3 {[%clk 0:01:25]}  Bf8 {[%clk 0:02:04]} 19. Bd2 {[%clk 0:01:21]}  Qb7 {[%clk 0:02:02]} 20. Rfd1 {[%clk 0:01:03]}  Bg7 {[%clk 0:02:01]} 21. c3 {[%clk 0:00:57]}  Nxd5 {[%clk 0:01:41]} 22. cxb4 {[%clk 0:00:54]}  Nxb4 {[%clk 0:01:09]} 23. Bxb4 {[%clk 0:00:51]}  Qxb4 {[%clk 0:01:09]} 24. Ne4 {[%clk 0:00:52]}  Nxe4 {[%clk 0:00:57]} 25. Qxe4 {[%clk 0:00:53]}  Qc5 {[%clk 0:00:52]} 26. Rd5 {[%clk 0:00:48]}  Qc6 {[%clk 0:00:48]} 27. Rad1 {[%clk 0:00:46]}  Kh8 {[%clk 0:00:49]} 28. Qf3 {[%clk 0:00:36]}  Qc7 {[%clk 0:00:22]} 29. Rxd6 {[%clk 0:00:34]}  Ra7 {[%clk 0:00:22]} 30. Qe3 {[%clk 0:00:23]}  Bf8 {[%clk 0:00:18]} 31. Rf6 {[%clk 0:00:19]}  Re7 {[%clk 0:00:15]} 32. Rb6 {[%clk 0:00:11]}  Kg7 {[%clk 0:00:10]} 33. Rdd6 {[%clk 0:00:11]}  Re8 {[%clk 0:00:07]} 34. h4 {[%clk 0:00:11]}  Bxd6 {[%clk 0:00:07]} 35. Rxd6 {[%clk 0:00:09]}  Qxd6 {[%clk 0:00:05]} 36. Qxa7 {[%clk 0:00:09]}  Re7 {[%clk 0:00:05]} 37. Qe3 {[%clk 0:00:08]}  e4 {[%clk 0:00:05]} 38. b4 {[%clk 0:00:06]}  Qd1+ {[%clk 0:00:05]} 39. Kh2 {[%clk 0:00:06]}  Qd6+ {[%clk 0:00:06]} 40. g3 {[%clk 0:00:06]}  Qxb4 {[%clk 0:00:06]} 41. Qd4+ {[%clk 0:00:06]}  f6 {[%clk 0:00:05]} 42. Qd5 {[%clk 0:00:07]}  Qb8 {[%clk 0:00:04]} 43. Qc5 {[%clk 0:00:06]}  Qf8 {[%clk 0:00:04]} 44. Qd5 {[%clk 0:00:06]}  e3 {[%clk 0:00:03]} 45. fxe3 {[%clk 0:00:07]}  Rxe3 {[%clk 0:00:04]} 46. Qb7+ {[%clk 0:00:07]}  Qe7 {[%clk 0:00:04]} 47. Qxa6 {[%clk 0:00:07]}  Qe5 {[%clk 0:00:04]} 48. Qb7+ {[%clk 0:00:07]}  Kh6 {[%clk 0:00:04]} 49. Qg2 {[%clk 0:00:06]}  f5 {[%clk 0:00:04]} 50. a6 {[%clk 0:00:06]}  f4 {[%clk 0:00:05]} 51. a7 {[%clk 0:00:03]}  fxg3+ {[%clk 0:00:04]} 52. Kh1 {[%clk 0:00:03]}  Re1+ {[%clk 0:00:05]} 53. Bf1 {[%clk 0:00:02]}  Qf4 {[%clk 0:00:03]} 54. Kg1 {[%clk 0:00:01]}  Qe3+ {[%clk 0:00:03]} 55. Kh1 {[%clk 0:00:02]}  Qxa7 {[%clk 0:00:02]} 56. Qd2+ {[%clk 0:00:02]}  Qe3 {[%clk 0:00:03]} 57. Qxe3+ {[%clk 0:00:02]}  Rxe3 {[%clk 0:00:03]} 58. Kg2 {[%clk 0:00:02]}  Kh5 {[%clk 0:00:04]} 59. Kh3 {[%clk 0:00:03]}  g2+ {[%clk 0:00:03]} 60. Kxg2 {[%clk 0:00:03]}  Kxh4 {[%clk 0:00:04]} 61. Kf2 {[%clk 0:00:04]}  Rg3 {[%clk 0:00:05]} 62. Be2 {[%clk 0:00:04]}  g5 {[%clk 0:00:06]} 63. Bc4 {[%clk 0:00:05]}  g4 {[%clk 0:00:07]} 64. Bf7 {[%clk 0:00:05]}  Rf3+ {[%clk 0:00:07]} 65. Kg2 {[%clk 0:00:06]}  Rxf7 {[%clk 0:00:08]} 66. Kh2 {[%clk 0:00:06]}  Rf2+ {[%clk 0:00:08]} 67. Kh1 {[%clk 0:00:07]}  Kg3 {[%clk 0:00:09]} 0-1


[Site "https://www.chess.com"]

[Event "Titled Tuesday Blitz December 27 Late 2022"]
[White "Potapova, Margarita"]
[Black "Samsonkin, Artiom"]
[WhiteFideId "14126869"]
[BlackFideId "13503111"]
[WhiteElo "2104"]
[BlackElo "2420"]
[Result "1/2-1/2"]
[Round "07"]
[TimeControl "180+2"]
[Date "2022.12.27"]
[WhiteClock "0:02:03"]
[BlackClock "0:00:52"]

1. d4 {[%clk 0:02:59]}  Nf6 {[%clk 0:02:59]} 2. c4 {[%clk 0:02:59]}  e6 {[%clk 0:03:00]} 3. Nc3 {[%clk 0:02:59]}  Bb4 {[%clk 0:03:00]} 4. Qc2 {[%clk 0:02:59]}  O-O {[%clk 0:03:00]} 5. e4 {[%clk 0:02:59]}  d6 {[%clk 0:02:58]} 6. e5 {[%clk 0:02:59]}  dxe5 {[%clk 0:02:58]} 7. dxe5 {[%clk 0:03:00]}  Ng4 {[%clk 0:02:58]} 8. Nf3 {[%clk 0:03:00]}  Nc6 {[%clk 0:02:58]} 9. Bf4 {[%clk 0:03:00]}  Nd4 {[%clk 0:02:59]} 10. Qe4 {[%clk 0:02:48]}  c5 {[%clk 0:02:31]} 11. Bd3 {[%clk 0:02:44]}  f5 {[%clk 0:02:25]} 12. exf6 {[%clk 0:02:41]}  Nxf6 {[%clk 0:02:25]} 13. Qe3 {[%clk 0:02:33]}  Ng4 {[%clk 0:01:56]} 14. Qe4 {[%clk 0:02:30]}  Nf6 {[%clk 0:01:36]} 15. Qe3 {[%clk 0:02:27]}  Nf5 {[%clk 0:00:52]} 16. Qe2 {[%clk 0:02:13]}  Nd4 {[%clk 0:00:52]} 17. Qe3 {[%clk 0:02:03]} 1/2-1/2


[Site "https://www.chess.com"]

[Event "Titled Tuesday Blitz December 27 Late 2022"]
[White "Rego, Pedro Filipe"]
[Black "Toniutti, Ezio"]
[WhiteFideId "1904310"]
[BlackFideId "113034"]
[WhiteElo "2312"]
[BlackElo "2224"]
[Result "0-1"]
[Round "07"]
[TimeControl "180+2"]
[Date "2022.12.27"]
[WhiteClock "0:00:05"]
[BlackClock "0:00:08"]

1. d4 {[%clk 0:03:00]}  d5 {[%clk 0:02:59]} 2. Nc3 {[%clk 0:03:01]}  Nf6 {[%clk 0:02:59]} 3. Bf4 {[%clk 0:03:00]}  e6 {[%clk 0:02:58]} 4. e3 {[%clk 0:03:01]}  Bd6 {[%clk 0:02:55]} 5. Bg3 {[%clk 0:02:58]}  O-O {[%clk 0:02:54]} 6. Nf3 {[%clk 0:02:58]}  b6 {[%clk 0:02:54]} 7. Bd3 {[%clk 0:02:56]}  Bb7 {[%clk 0:02:50]} 8. O-O {[%clk 0:02:53]}  c5 {[%clk 0:02:49]} 9. Ne5 {[%clk 0:02:47]}  Nc6 {[%clk 0:02:37]} 10. Nb5 {[%clk 0:02:41]}  Be7 {[%clk 0:02:31]} 11. c3 {[%clk 0:02:38]}  a6 {[%clk 0:02:27]} 12. Na3 {[%clk 0:02:38]}  c4 {[%clk 0:02:26]} 13. Bc2 {[%clk 0:02:34]}  b5 {[%clk 0:02:27]} 14. Nb1 {[%clk 0:02:31]}  a5 {[%clk 0:02:24]} 15. Nd2 {[%clk 0:02:23]}  b4 {[%clk 0:02:24]} 16. e4 {[%clk 0:02:21]}  Nxe5 {[%clk 0:02:21]} 17. dxe5 {[%clk 0:02:21]}  Nxe4 {[%clk 0:02:21]} 18. Bxe4 {[%clk 0:02:12]}  dxe4 {[%clk 0:02:21]} 19. Nxc4 {[%clk 0:02:13]}  Ba6 {[%clk 0:02:10]} 20. Nd6 {[%clk 0:02:10]}  Bxf1 {[%clk 0:02:08]} 21. Qxf1 {[%clk 0:02:11]}  f5 {[%clk 0:01:56]} 22. Qc4 {[%clk 0:01:47]}  Qd7 {[%clk 0:01:47]} 23. Bf4 {[%clk 0:01:33]}  g5 {[%clk 0:01:42]} 24. Be3 {[%clk 0:01:33]}  Bxd6 {[%clk 0:01:41]} 25. Rd1 {[%clk 0:01:32]}  Rac8 {[%clk 0:01:28]} 26. Qd4 {[%clk 0:01:27]}  bxc3 {[%clk 0:01:20]} 27. bxc3 {[%clk 0:01:28]}  f4 {[%clk 0:01:13]} 28. Bc1 {[%clk 0:01:27]}  Qc6 {[%clk 0:01:03]} 29. exd6 {[%clk 0:01:19]}  Qd5 {[%clk 0:00:46]} 30. Qa4 {[%clk 0:01:05]}  Rc4 {[%clk 0:00:31]} 31. Rxd5 {[%clk 0:00:44]}  Rxa4 {[%clk 0:00:28]} 32. Rxg5+ {[%clk 0:00:45]}  Kf7 {[%clk 0:00:28]} 33. Bxf4 {[%clk 0:00:42]}  Rxa2 {[%clk 0:00:26]} 34. g3 {[%clk 0:00:42]}  Rc2 {[%clk 0:00:19]} 35. Rc5 {[%clk 0:00:38]}  a4 {[%clk 0:00:17]} 36. Rc7+ {[%clk 0:00:27]}  Kf6 {[%clk 0:00:17]} 37. h4 {[%clk 0:00:26]}  e5 {[%clk 0:00:16]} 38. Bg5+ {[%clk 0:00:25]}  Ke6 {[%clk 0:00:17]} 39. d7 {[%clk 0:00:25]}  a3 {[%clk 0:00:13]} 40. Ra7 {[%clk 0:00:15]}  a2 {[%clk 0:00:13]} 41. Kg2 {[%clk 0:00:14]}  Rfxf2+ {[%clk 0:00:11]} 42. Kh3 {[%clk 0:00:15]}  h5 {[%clk 0:00:11]} 43. d8=N+ {[%clk 0:00:07]}  Kd5 {[%clk 0:00:11]} 44. Rd7+ {[%clk 0:00:06]}  Kc4 {[%clk 0:00:11]} 45. Rc7+ {[%clk 0:00:04]}  Kb5 {[%clk 0:00:08]} 46. Rb7+ {[%clk 0:00:03]}  Ka6 {[%clk 0:00:08]} 47. Ra7+ {[%clk 0:00:02]}  Kxa7 {[%clk 0:00:08]} 48. Be3+ {[%clk 0:00:03]}  Ka6 {[%clk 0:00:08]} 49. Bxf2 {[%clk 0:00:04]}  Rxf2 {[%clk 0:00:08]} 50. Nc6 {[%clk 0:00:05]}  a1=Q {[%clk 0:00:08]} 0-1


[Site "https://www.chess.com"]

[Event "Titled Tuesday Blitz December 27 Late 2022"]
[White "Ronka, Erik"]
[Black "TheKnightOfBosnia"]
[WhiteFideId "505080"]
[WhiteElo "2276"]
[BlackElo "2434"]
[Result "1/2-1/2"]
[Round "07"]
[TimeControl "180+2"]
[Date "2022.12.27"]
[WhiteClock "0:00:06"]
[BlackClock "0:00:11"]

1. d4 {[%clk 0:03:00]}  Nf6 {[%clk 0:02:59]} 2. Nf3 {[%clk 0:03:00]}  e6 {[%clk 0:03:00]} 3. g3 {[%clk 0:03:01]}  b6 {[%clk 0:03:00]} 4. Bg2 {[%clk 0:03:00]}  Bb7 {[%clk 0:03:00]} 5. O-O {[%clk 0:03:00]}  g6 {[%clk 0:03:01]} 6. c4 {[%clk 0:03:00]}  Bg7 {[%clk 0:03:01]} 7. Nc3 {[%clk 0:02:57]}  O-O {[%clk 0:03:01]} 8. Qc2 {[%clk 0:02:54]}  d5 {[%clk 0:03:01]} 9. cxd5 {[%clk 0:02:53]}  exd5 {[%clk 0:03:01]} 10. Bf4 {[%clk 0:02:52]}  Na6 {[%clk 0:03:00]} 11. Rfd1 {[%clk 0:02:51]}  Re8 {[%clk 0:02:50]} 12. Rac1 {[%clk 0:02:49]}  Qe7 {[%clk 0:02:37]} 13. Ne5 {[%clk 0:02:45]}  c6 {[%clk 0:02:28]} 14. Qa4 {[%clk 0:02:38]}  Rac8 {[%clk 0:02:21]} 15. e3 {[%clk 0:02:35]}  Qb4 {[%clk 0:02:15]} 16. Bf1 {[%clk 0:02:29]}  Qxa4 {[%clk 0:02:10]} 17. Nxa4 {[%clk 0:02:30]}  Nb8 {[%clk 0:02:09]} 18. Be2 {[%clk 0:02:17]}  Nbd7 {[%clk 0:02:06]} 19. b4 {[%clk 0:02:13]}  Nxe5 {[%clk 0:02:02]} 20. Bxe5 {[%clk 0:02:14]}  Ne4 {[%clk 0:02:02]} 21. Bxg7 {[%clk 0:02:10]}  Kxg7 {[%clk 0:02:03]} 22. b5 {[%clk 0:02:01]}  cxb5 {[%clk 0:01:47]} 23. Bxb5 {[%clk 0:02:02]}  Red8 {[%clk 0:01:48]} 24. f3 {[%clk 0:01:53]}  Nd6 {[%clk 0:01:46]} 25. Bd3 {[%clk 0:01:54]}  f5 {[%clk 0:01:39]} 26. Kf2 {[%clk 0:01:54]}  Kf6 {[%clk 0:01:37]} 27. Nc3 {[%clk 0:01:39]}  Ke6 {[%clk 0:01:36]} 28. Ne2 {[%clk 0:01:39]}  Rxc1 {[%clk 0:01:33]} 29. Nxc1 {[%clk 0:01:33]}  Rc8 {[%clk 0:01:33]} 30. Nb3 {[%clk 0:01:33]}  Bc6 {[%clk 0:01:04]} 31. Ke2 {[%clk 0:01:10]}  Ba4 {[%clk 0:01:03]} 32. Kd2 {[%clk 0:01:04]}  Nc4+ {[%clk 0:00:47]} 33. Ke2 {[%clk 0:01:02]}  Bxb3 {[%clk 0:00:45]} 34. axb3 {[%clk 0:01:01]}  Nb2 {[%clk 0:00:42]} 35. Ra1 {[%clk 0:00:55]}  Nxd3 {[%clk 0:00:43]} 36. Kxd3 {[%clk 0:00:55]}  a5 {[%clk 0:00:41]} 37. b4 {[%clk 0:00:39]}  axb4 {[%clk 0:00:40]} 38. Ra6 {[%clk 0:00:40]}  Rc3+ {[%clk 0:00:40]} 39. Kd2 {[%clk 0:00:39]}  Rc6 {[%clk 0:00:37]} 40. Ra4 {[%clk 0:00:38]}  b3 {[%clk 0:00:38]} 41. Rb4 {[%clk 0:00:37]}  Rc2+ {[%clk 0:00:38]} 42. Kd3 {[%clk 0:00:37]}  Rxh2 {[%clk 0:00:38]} 43. Rxb6+ {[%clk 0:00:37]}  Kf7 {[%clk 0:00:36]} 44. Rxb3 {[%clk 0:00:36]}  Rh3 {[%clk 0:00:34]} 45. Rb5 {[%clk 0:00:21]}  Ke6 {[%clk 0:00:33]} 46. Rb6+ {[%clk 0:00:22]}  Kd7 {[%clk 0:00:33]} 47. Rb7+ {[%clk 0:00:20]}  Kc6 {[%clk 0:00:33]} 48. Rg7 {[%clk 0:00:20]}  Rxg3 {[%clk 0:00:32]} 49. Rxh7 {[%clk 0:00:19]}  Rxf3 {[%clk 0:00:33]} 50. Re7 {[%clk 0:00:11]}  Kd6 {[%clk 0:00:28]} 51. Rg7 {[%clk 0:00:10]}  Rg3 {[%clk 0:00:28]} 52. Ke2 {[%clk 0:00:10]}  Ke6 {[%clk 0:00:26]} 53. Kf2 {[%clk 0:00:10]}  Rg4 {[%clk 0:00:24]} 54. Kf3 {[%clk 0:00:09]}  Rg1 {[%clk 0:00:22]} 55. Ra7 {[%clk 0:00:05]}  Rb1 {[%clk 0:00:17]} 56. Ra6+ {[%clk 0:00:05]}  Kf7 {[%clk 0:00:15]} 57. Ra5 {[%clk 0:00:05]}  Ke6 {[%clk 0:00:15]} 58. Ra6+ {[%clk 0:00:06]}  Kf7 {[%clk 0:00:15]} 59. Ra5 {[%clk 0:00:06]}  Ke6 {[%clk 0:00:11]} 60. Ra6+ {[%clk 0:00:06]} 1/2-1/2


[Site "https://www.chess.com"]

[Event "Titled Tuesday Blitz December 27 Late 2022"]
[White "Sanchez, Robert"]
[Black "Yurasova, Daria"]
[WhiteFideId "2034360"]
[BlackFideId "34146919"]
[WhiteElo "1966"]
[BlackElo "2095"]
[Result "0-1"]
[Round "07"]
[TimeControl "180+2"]
[Date "2022.12.27"]
[WhiteClock "0:01:52"]
[BlackClock "0:01:54"]

1. e4 {[%clk 0:03:00]}  e5 {[%clk 0:02:59]} 2. Nf3 {[%clk 0:03:01]}  Nc6 {[%clk 0:02:58]} 3. Bb5 {[%clk 0:03:00]}  a6 {[%clk 0:02:58]} 4. Ba4 {[%clk 0:03:00]}  Nf6 {[%clk 0:02:53]} 5. d3 {[%clk 0:03:01]}  b5 {[%clk 0:02:52]} 6. Bb3 {[%clk 0:03:01]}  Bc5 {[%clk 0:02:53]} 7. Nc3 {[%clk 0:03:00]}  d6 {[%clk 0:02:52]} 8. Bg5 {[%clk 0:02:59]}  h6 {[%clk 0:02:52]} 9. Bh4 {[%clk 0:02:59]}  g5 {[%clk 0:02:52]} 10. Nxg5 {[%clk 0:03:00]}  hxg5 {[%clk 0:02:51]} 11. Bxg5 {[%clk 0:03:01]}  Rg8 {[%clk 0:02:49]} 12. h4 {[%clk 0:03:01]}  Bb4 {[%clk 0:02:44]} 13. Qf3 {[%clk 0:02:51]}  Bxc3+ {[%clk 0:02:42]} 14. bxc3 {[%clk 0:02:51]}  Rg6 {[%clk 0:02:40]} 15. Bd5 {[%clk 0:02:35]}  Bb7 {[%clk 0:02:38]} 16. Qf5 {[%clk 0:02:31]}  Qe7 {[%clk 0:02:36]} 17. h5 {[%clk 0:02:29]}  Rxg5 {[%clk 0:02:30]} 18. Qxg5 {[%clk 0:02:29]}  Nxd5 {[%clk 0:02:31]} 19. Qg8+ {[%clk 0:02:28]}  Kd7 {[%clk 0:02:30]} 20. Qg4+ {[%clk 0:02:28]}  Qe6 {[%clk 0:02:24]} 21. Qxe6+ {[%clk 0:02:28]}  fxe6 {[%clk 0:02:24]} 22. exd5 {[%clk 0:02:29]}  exd5 {[%clk 0:02:25]} 23. g4 {[%clk 0:02:27]}  d4 {[%clk 0:02:24]} 24. h6 {[%clk 0:02:16]}  dxc3 {[%clk 0:02:17]} 25. h7 {[%clk 0:02:14]}  Nd4 {[%clk 0:02:17]} 26. h8=Q {[%clk 0:02:09]}  Nxc2+ {[%clk 0:02:11]} 27. Kd1 {[%clk 0:02:06]}  Rxh8 {[%clk 0:02:08]} 28. Rxh8 {[%clk 0:02:06]}  Nxa1 {[%clk 0:02:09]} 29. g5 {[%clk 0:02:06]}  e4 {[%clk 0:01:58]} 30. dxe4 {[%clk 0:02:04]}  Bxe4 {[%clk 0:01:58]} 31. Rg8 {[%clk 0:01:59]}  b4 {[%clk 0:01:56]} 32. g6 {[%clk 0:01:55]}  b3 {[%clk 0:01:54]} 33. axb3 {[%clk 0:01:55]}  c2+ {[%clk 0:01:54]} 34. Kd2 {[%clk 0:01:52]}  Nxb3+ {[%clk 0:01:54]} 0-1


[Site "https://www.chess.com"]